[Event "IMSA Blitz Women 2019"]
[Site "Hengshui"]
[Date "2019.05.17"]
[Round "2.2"]
[White "Krush, Irina"]
[Black "Harika, Dronavalli"]
[Result "1-0"]
[ECO "A81"]
[WhiteElo "2422"]
[BlackElo "2492"]
[Annotator "RC"]
[PlyCount "83"]
[EventDate "2019.05.17"]
[EventType "blitz"]
[EventCountry "CHN"]
[SourceTitle "playchess.com"]
[Source "ChessBase"]
[SourceQuality "1"]
[TimeControl "180+2"]

1. d4 {[%emt 0:00:00]} f5 {[%emt 0:00:00]} 2. g3 {[%emt 0:00:01]} Nf6 {[%emt 0:00:01]} 3. Bg2 {[%emt 0:00:01]} g6 {[%emt 0:00:00]} 4. c4 {[%emt 0:00:04]} Bg7 {[%emt 0:00:02]} 5. Nc3 {[%emt 0:00:01]} O-O {[%emt 0:00:04]} 6. Nh3 {[%emt 0:00:03]} d6 {[%emt 0:00:03]} 7. d5 {[%emt 0:00:02]} Na6 {[%emt 0:00:13]} 8. O-O {[%emt 0:00:03]} Nc5 {[%emt 0:00:27]} 9. Nf4 {[%emt 0:00:02]} e5 {[%emt 0:00:00]} 10. dxe6 {[%emt 0:00:01]} c6 {[%emt 0:00:01]} 11. Qc2 {[%emt 0:00:14]} Nxe6 {[%emt 0:00:10]} 12. Nxe6 {[%emt 0:00:01]} Bxe6 {[%emt 0:00:00]} 13. b3 {[%emt 0:00:02]} d5 {[%emt 0:00:09]} 14. cxd5 {[%emt 0:00:35]} Nxd5 {[%emt 0:00:03]} 15. Bb2 {[%emt 0:00:00]} Nxc3 {[%emt 0:00:34]} 16. Bxc3 {[%emt 0:00:03]} Qe7 {[%emt 0:00:10]} 17. Bxg7 {[%emt 0:00:09]} Qxg7 {[%emt 0:00:01]} 18. e3 {[%emt 0:00:01]} Rfd8 {[%emt 0:00:10]} 19. Rfd1 {[%emt 0:00:16]} Qe7 {[%emt 0:00:01]} 20. Qc3 {[%emt 0:00:05]} Rxd1+ {[%emt 0:00:06]} 21. Rxd1 {[%emt 0:00:02]} Rd8 {[%emt 0:00:01]} 22. Rxd8+ {[%emt 0:00:15]} Qxd8 {[%emt 0:00:01]} 23. Bf3 {[%emt 0:00:01]} Qd7 {[%emt 0:00:22]} 24. h4 {[%emt 0:00:03]} Bd5 {[%emt 0:00:05]} 25. Qd4 {[%emt 0:00:02]} a6 {[%emt 0:00:08]} 26. Bxd5+ {[%emt 0:00:06]} cxd5 {[%emt 0:00:02]} 27. Qf6 {[%emt 0:00:12]} Qb5 {[%emt 0:00:09]} 28. h5 {[%emt 0:00:07]} gxh5 {[%emt 0:00:11]} 29. Qg5+ {[%emt 0:00:04]} Kh8 {[%emt 0:00:09]} 30. Qxf5 {[%emt 0:00:02]} Kg7 {[%emt 0:00:02]} 31. Qxh5 {[%emt 0:00:06]} Qd3 {[%emt 0:00:02]} 32. Qe5+ {[%emt 0:00:05]} Kg8 {[%emt 0:00:03]} 33. Qb8+ {[%emt 0:00:02]} Kg7 {[%emt 0:00:02]} 34. Qxb7+ {[%emt 0:00:02]} Kg6 {[%emt 0:00:00]} 35. Qb6+ {[%emt 0:00:05]} Kf5 {[%emt 0:00:08]} 36. Qd4 {[%emt 0:00:11]} Qb1+ {[%emt 0:00:18]} 37. Kg2 {[%emt 0:00:03]} Qxa2 {[%emt 0:00:01]} 38. Qxd5+ {[%emt 0:00:03]} Kg6 {[%emt 0:00:00]} 39. e4 {[%emt 0:00:08]} a5 {[%emt 0:00:09]} 40. e5 {[%emt 0:00:06]} Qe2 {[%emt 0:00:03]} 41. e6 {[%emt 0:00:06]} Kf6 {[%emt 0:00:02]} 42. Qf3+ {[%emt 0:00:07]} 1-0

[Event "IMSA Blitz Women 2019"]
[Site "Hengshui"]
[Date "2019.05.17"]
[Round "3.1"]
[White "Muzychuk, Mariya"]
[Black "Paehtz, Elisabeth"]
[Result "1-0"]
[ECO "A40"]
[WhiteElo "2563"]
[BlackElo "2470"]
[Annotator "ChessBase"]
[PlyCount "57"]
[EventDate "2019.05.17"]
[EventType "blitz"]
[EventCountry "CHN"]
[SourceTitle "playchess.com"]
[Source "ChessBase"]
[SourceQuality "1"]
[TimeControl "180+2"]

1. d4 {[%emt 0:00:00]} e6 {[%emt 0:00:00]} 2. c4 {[%emt 0:00:00]} b6 3. a3 Bb7 {[%emt 0:00:01]} 4. Nc3 {[%emt 0:00:00]} f5 {[%emt 0:00:01]} 5. Qc2 {[%emt 0:00:01]} Nf6 {[%emt 0:00:02]} 6. Nf3 {[%emt 0:00:02]} g6 {[%emt 0:00:02]} 7. g3 {[%emt 0:00:03]} Bg7 {[%emt 0:00:02]} 8. Bg2 {[%emt 0:00:01]} O-O {[%emt 0:00:02]} 9. O-O {[%emt 0:00:01]} Qe7 {[%emt 0:00:13]} 10. b3 {[%emt 0:00:12]} Ne4 {[%emt 0:00:07]} 11. Bb2 {[%emt 0:00:09]} Nxc3 {[%emt 0:00:02]} 12. Bxc3 {[%emt 0:00:03]} Be4 {[%emt 0:00:02]} 13. Qb2 {[%emt 0:00:05]} Nc6 {[%emt 0:00:07]} 14. Ne1 {[%emt 0:00:05]} Bxg2 {[%emt 0:00:05]} 15. Nxg2 {[%emt 0:00:01]} d5 {[%emt 0:00:01]} 16. cxd5 {[%emt 0:00:13]} exd5 {[%emt 0:00:02]} 17. Nf4 {[%emt 0:00:01]} Rad8 {[%emt 0:00:04]} 18. Rac1 {[%emt 0:00:05]} Qd6 {[%emt 0:00:09]} 19. Rc2 {[%emt 0:00:14]} a5 {[%emt 0:00:08]} 20. Rfc1 {[%emt 0:00:02]} Nb8 {[%emt 0:00:01]} 21. b4 {[%emt 0:00:13]} axb4 {[%emt 0:00:24]} 22. Bxb4 {[%emt 0:00:13]} c5 {[%emt 0:00:01]} 23. Bc3 {[%emt 0:00:13]} Rf7 {[%emt 0:00:09]} 24. dxc5 {[%emt 0:00:05]} bxc5 {[%emt 0:00:03]} 25. Bxg7 {[%emt 0:00:03]} Rxg7 {[%emt 0:00:01]} 26. Rxc5 {[%emt 0:00:02]} d4 {[%emt 0:00:09]} 27. Rd5 {[%emt 0:00:07]} Qe7 {[%emt 0:00:06]} 28. Rxd8+ {[%emt 0:00:01]} Qxd8 {[%emt 0:00:01]} 29. Ne6 {[%emt 0:00:02]} 1-0

[Event "IMSA Blitz Women 2019"]
[Site "Hengshui"]
[Date "2019.05.17"]
[Round "3.1"]
[White "Dzagnidze, Nana"]
[Black "Ushenina, Anna"]
[Result "1-0"]
[ECO "A06"]
[WhiteElo "2510"]
[BlackElo "2442"]
[Annotator "RC"]
[PlyCount "139"]
[EventDate "2019.05.17"]
[EventType "blitz"]
[EventCountry "CHN"]
[SourceTitle "playchess.com"]
[Source "ChessBase"]
[SourceQuality "1"]
[TimeControl "180+2"]

1. Nf3 {[%emt 0:00:00]} d5 {[%emt 0:00:02]} 2. b3 {[%emt 0:00:01]} Bg4 {[%emt 0:00:05]} 3. Bb2 {[%emt 0:00:02]} c6 {[%emt 0:00:03]} 4. g3 {[%emt 0:00:14]} Bxf3 {[%emt 0:00:03]} 5. exf3 {[%emt 0:00:01]} Nd7 {[%emt 0:00:01]} 6. f4 {[%emt 0:00:03]} e6 {[%emt 0:00:02]} 7. Bg2 {[%emt 0:00:04]} Ngf6 {[%emt 0:00:01]} 8. d3 {[%emt 0:00:02]} Be7 {[%emt 0:00:04]} 9. Nd2 {[%emt 0:00:03]} a5 {[%emt 0:00:04]} 10. a3 {[%emt 0:00:06]} O-O {[%emt 0:00:03]} 11. O-O {[%emt 0:00:01]} Ne8 {[%emt 0:00:08]} 12. Nf3 {[%emt 0:00:11]} Nd6 {[%emt 0:00:05]} 13. Ne5 {[%emt 0:00:05]} a4 {[%emt 0:00:21]} 14. b4 {[%emt 0:00:03]} Qc7 {[%emt 0:00:07]} 15. Qe2 {[%emt 0:00:02]} Nf6 {[%emt 0:00:09]} 16. c4 {[%emt 0:00:02]} c5 {[%emt 0:00:24]} 17. cxd5 {[%emt 0:00:16]} exd5 {[%emt 0:00:02]} 18. Rac1 {[%emt 0:00:03]} b6 {[%emt 0:00:02]} 19. Ng4 {[%emt 0:00:08]} Nde8 {[%emt 0:00:13]} 20. Rfe1 {[%emt 0:00:20]} Ra7 {[%emt 0:00:18]} 21. bxc5 {[%emt 0:00:20]} bxc5 {[%emt 0:00:02]} 22. Nxf6+ {[%emt 0:00:25]} Nxf6 {[%emt 0:00:09]} 23. Bxf6 {[%emt 0:00:09]} Bxf6 {[%emt 0:00:02]} 24. Bxd5 {[%emt 0:00:01]} Qd6 {[%emt 0:00:15]} 25. Bc4 {[%emt 0:00:10]} Rb7 {[%emt 0:00:05]} 26. Rc2 {[%emt 0:00:13]} Bd4 {[%emt 0:00:04]} 27. Qf3 {[%emt 0:00:02]} Rb6 {[%emt 0:00:08]} 28. h4 {[%emt 0:00:05]} g6 {[%emt 0:00:06]} 29. h5 {[%emt 0:00:04]} Kg7 {[%emt 0:00:00]} 30. Rce2 {[%emt 0:00:11]} Rb2 {[%emt 0:00:05]} 31. Qg4 {[%emt 0:00:12]} Rxe2 {[%emt 0:00:04]} 32. Rxe2 {[%emt 0:00:01]} Qc6 {[%emt 0:00:12]} 33. f5 {[%emt 0:00:05]} Rb8 {[%emt 0:00:04]} 34. Re4 {[%emt 0:00:06]} Rb2 {[%emt 0:00:03]} 35. fxg6 {[%emt 0:00:04]} hxg6 {[%emt 0:00:18]} 36. hxg6 {[%emt 0:00:02]} Bxf2+ {[%emt 0:00:02]} 37. Kf1 {[%emt 0:00:02]} Qxg6 {[%emt 0:00:01]} 38. Qxg6+ {[%emt 0:00:08]} fxg6 {[%emt 0:00:04]} 39. Re7+ {[%emt 0:00:03]} Kh6 {[%emt 0:00:01]} 40. Ra7 {[%emt 0:00:04]} Bxg3 {[%emt 0:00:03]} 41. Rxa4 {[%emt 0:00:01]} Be5 {[%emt 0:00:05]} 42. Ra6 {[%emt 0:00:03]} Rb1+ {[%emt 0:00:06]} 43. Ke2 {[%emt 0:00:01]} Kh5 {[%emt 0:00:02]} 44. Bf7 {[%emt 0:00:03]} Rg1 {[%emt 0:00:02]} 45. a4 {[%emt 0:00:00]} Bc3 {[%emt 0:00:05]} 46. Rc6 {[%emt 0:00:02]} Bb4 {[%emt 0:00:01]} 47. a5 {[%emt 0:00:02]} Ra1 {[%emt 0:00:02]} 48. Rxg6 {[%emt 0:00:03]} Rxa5 {[%emt 0:00:02]} 49. Rg8+ {[%emt 0:00:04]} Kh4 {[%emt 0:00:01]} 50. Bc4 {[%emt 0:00:02]} Ra7 {[%emt 0:00:01]} 51. Kf3 {[%emt 0:00:01]} Ra1 {[%emt 0:00:02]} 52. Ke4 {[%emt 0:00:02]} Re1+ {[%emt 0:00:01]} 53. Kd5 {[%emt 0:00:01]} Re7 {[%emt 0:00:02]} 54. Kc6 {[%emt 0:00:01]} Ra7 {[%emt 0:00:02]} 55. Kb5 {[%emt 0:00:01]} Ra5+ {[%emt 0:00:01]} 56. Kb6 {[%emt 0:00:01]} Ra3 {[%emt 0:00:01]} 57. Kb5 {[%emt 0:00:03]} Ra5+ {[%emt 0:00:00]} 58. Kc6 {[%emt 0:00:01]} Ra7 {[%emt 0:00:02]} 59. Rb8 {[%emt 0:00:02]} Kg5 {[%emt 0:00:01]} 60. d4 {[%emt 0:00:02]} Ra5 {[%emt 0:00:04]} 61. d5 {[%emt 0:00:02]} Bc3 {[%emt 0:00:03]} 62. d6 {[%emt 0:00:03]} Bf6 {[%emt 0:00:01]} 63. Rg8+ {[%emt 0:00:02]} Kf5 64. d7 {[%emt 0:00:04]} Ra4 {[%emt 0:00:03]} 65. Rf8 {[%emt 0:00:02]} Ke5 {[%emt 0:00:05]} 66. Rxf6 {[%emt 0:00:02]} Ra8 {[%emt 0:00:05]} 67. Rd6 {[%emt 0:00:04]} Rd8 {[%emt 0:00:01]} 68. Rd5+ {[%emt 0:00:01]} Ke6 {[%emt 0:00:01]} 69. Kc7 {[%emt 0:00:02]} Ke7 {[%emt 0:00:01]} 70. Re5+ {[%emt 0:00:01]} 1-0

[Event "IMSA Blitz Women 2019"]
[Site "Hengshui"]
[Date "2019.05.17"]
[Round "3.1"]
[White "Harika, Dronavalli"]
[Black "Abdumalik, Zhansaya"]
[Result "1-0"]
[ECO "A34"]
[WhiteElo "2492"]
[BlackElo "2464"]
[Annotator "ChessBase"]
[PlyCount "59"]
[EventDate "2019.05.17"]
[EventType "blitz"]
[EventCountry "CHN"]
[SourceTitle "playchess.com"]
[Source "ChessBase"]
[SourceQuality "1"]
[TimeControl "180+2"]

1. Nf3 {[%emt 0:00:00]} Nf6 {[%emt 0:00:00]} 2. c4 {[%emt 0:00:01]} c5 {[%emt 0:00:01]} 3. Nc3 {[%emt 0:00:00]} d5 {[%emt 0:00:01]} 4. cxd5 Nxd5 {[%emt 0:00:01]} 5. e4 {[%emt 0:00:04]} Nb4 {[%emt 0:00:01]} 6. Bc4 {[%emt 0:00:01]} Nd3+ {[%emt 0:00:03]} 7. Ke2 {[%emt 0:00:01]} Nf4+ {[%emt 0:00:01]} 8. Kf1 {[%emt 0:00:01]} Nd3 {[%emt 0:00:00]} 9. Qe2 {[%emt 0:00:01]} Nxc1 {[%emt 0:00:01]} 10. Rxc1 {[%emt 0:00:02]} e6 {[%emt 0:00:01]} 11. e5 {[%emt 0:00:04]} Nc6 {[%emt 0:00:03]} 12. h4 {[%emt 0:00:02]} Bd7 {[%emt 0:00:01]} 13. Qe3 {[%emt 0:00:06]} Qb6 {[%emt 0:00:15]} 14. Qf4 {[%emt 0:00:11]} h6 {[%emt 0:00:01]} 15. Kg1 {[%emt 0:00:01]} Nd4 {[%emt 0:00:27]} 16. Nxd4 {[%emt 0:00:17]} cxd4 {[%emt 0:00:00]} 17. Ne4 {[%emt 0:00:01]} Qxb2 {[%emt 0:00:05]} 18. Kh2 {[%emt 0:00:05]} Bc6 {[%emt 0:00:15]} 19. Rb1 {[%emt 0:00:17]} Qa3 {[%emt 0:00:00]} 20. Bb5 {[%emt 0:00:08]} Be7 {[%emt 0:00:14]} 21. Bxc6+ bxc6 {[%emt 0:00:01]} 22. Rb3 {[%emt 0:00:09]} Qa6 {[%emt 0:00:01]} 23. Rg3 {[%emt 0:00:24]} g6 {[%emt 0:00:43]} 24. Rb1 {[%emt 0:00:27]} Rd8 {[%emt 0:00:15]} 25. Nf6+ {[%emt 0:00:34]} Bxf6 {[%emt 0:00:17]} 26. Qxf6 {[%emt 0:00:01]} Rf8 {[%emt 0:00:03]} 27. Rgb3 {[%emt 0:00:04]} Qa5 {[%emt 0:00:42]} 28. Rb7 {[%emt 0:00:21]} Rd7 {[%emt 0:00:11]} 29. Rb8+ {[%emt 0:00:03]} Rd8 {[%emt 0:00:01]} 30. R1b7 {[%emt 0:00:02]} 1-0

[Event "IMSA Blitz Women 2019"]
[Site "Hengshui"]
[Date "2019.05.17"]
[Round "3.1"]
[White "Stefanova, Antoaneta"]
[Black "Lei, Tingjie"]
[Result "1-0"]
[ECO "A45"]
[WhiteElo "2470"]
[BlackElo "2507"]
[Annotator "RC"]
[PlyCount "111"]
[EventDate "2019.05.17"]
[EventType "blitz"]
[EventCountry "CHN"]
[SourceTitle "playchess.com"]
[Source "ChessBase"]
[SourceQuality "1"]
[TimeControl "180+2"]

1. d4 {[%emt 0:00:00]} Nf6 {[%emt 0:00:00]} 2. Nc3 {[%emt 0:00:00]} d5 {[%emt 0:00:05]} 3. Bf4 {[%emt 0:00:01]} e6 {[%emt 0:00:17]} 4. e3 {[%emt 0:00:06]} Bd6 {[%emt 0:00:02]} 5. Bg3 {[%emt 0:00:07]} O-O {[%emt 0:00:02]} 6. Nb5 {[%emt 0:00:22]} Ne4 {[%emt 0:00:43]} 7. Nxd6 {[%emt 0:00:10]} cxd6 {[%emt 0:00:01]} 8. Bd3 {[%emt 0:00:08]} b6 {[%emt 0:00:10]} 9. f3 {[%emt 0:00:07]} Nxg3 {[%emt 0:00:04]} 10. hxg3 {[%emt 0:00:01]} f5 {[%emt 0:00:06]} 11. f4 {[%emt 0:00:04]} Ba6 {[%emt 0:00:06]} 12. Qh5 {[%emt 0:00:06]} h6 {[%emt 0:00:03]} 13. g4 {[%emt 0:00:03]} Bxd3 {[%emt 0:00:05]} 14. cxd3 {[%emt 0:00:01]} fxg4 {[%emt 0:00:03]} 15. Qxg4 {[%emt 0:00:03]} Qf6 {[%emt 0:00:01]} 16. Rc1 {[%emt 0:00:03]} Na6 {[%emt 0:00:32]} 17. a3 {[%emt 0:00:18]} e5 {[%emt 0:00:08]} 18. Ne2 {[%emt 0:00:12]} exd4 {[%emt 0:00:10]} 19. exd4 {[%emt 0:00:30]} Rae8 {[%emt 0:00:09]} 20. O-O {[%emt 0:00:04]} Re3 {[%emt 0:00:03]} 21. Rc3 {[%emt 0:00:48]} Rfe8 {[%emt 0:00:03]} 22. Rf2 {[%emt 0:00:02]} Kh7 {[%emt 0:00:07]} 23. f5 {[%emt 0:00:07]} Nb8 {[%emt 0:00:28]} 24. Qg6+ {[%emt 0:00:02]} Qxg6 {[%emt 0:00:02]} 25. fxg6+ {[%emt 0:00:01]} Kxg6 {[%emt 0:00:02]} 26. Nf4+ {[%emt 0:00:01]} Kg5 {[%emt 0:00:12]} 27. Nxd5 {[%emt 0:00:03]} Re1+ {[%emt 0:00:02]} 28. Kh2 {[%emt 0:00:01]} Na6 {[%emt 0:00:02]} 29. Rc6 {[%emt 0:00:06]} R8e6 {[%emt 0:00:04]} 30. Rc8 {[%emt 0:00:01]} Rd1 {[%emt 0:00:03]} 31. Rg8 {[%emt 0:00:04]} g6 {[%emt 0:00:01]} 32. Nf4 {[%emt 0:00:02]} Ree1 {[%emt 0:00:05]} 33. Rxg6+ {[%emt 0:00:02]} Kf5 {[%emt 0:00:01]} 34. Rg8 {[%emt 0:00:03]} Rh1+ 35. Kg3 Nc7 {[%emt 0:00:02]} 36. Nd5+ {[%emt 0:00:01]} Ke6 {[%emt 0:00:01]} 37. Nxc7+ {[%emt 0:00:01]} Kd7 {[%emt 0:00:01]} 38. Rg7+ {[%emt 0:00:01]} Kc6 {[%emt 0:00:00]} 39. d5+ {[%emt 0:00:01]} Kc5 {[%emt 0:00:01]} 40. Rc2+ {[%emt 0:00:02]} Kd4 {[%emt 0:00:01]} 41. Rg4+ {[%emt 0:00:03]} Kxd3 {[%emt 0:00:03]} 42. Rc3+ {[%emt 0:00:01]} Ke2 {[%emt 0:00:02]} 43. Re4+ {[%emt 0:00:01]} Kd2 {[%emt 0:00:01]} 44. Rd4+ {[%emt 0:00:00]} Ke2 {[%emt 0:00:01]} 45. Rxd1 {[%emt 0:00:01]} Rxd1 {[%emt 0:00:01]} 46. Rc6 {[%emt 0:00:01]} Rd3+ {[%emt 0:00:04]} 47. Kf4 {[%emt 0:00:02]} Rd2 {[%emt 0:00:06]} 48. b4 {[%emt 0:00:03]} Rd3 {[%emt 0:00:01]} 49. Rxd6 {[%emt 0:00:02]} Rxa3 {[%emt 0:00:02]} 50. Rxh6 {[%emt 0:00:02]} Rd3 {[%emt 0:00:00]} 51. Ke5 {[%emt 0:00:03]} a5 {[%emt 0:00:01]} 52. bxa5 {[%emt 0:00:01]} bxa5 53. Ra6 {[%emt 0:00:02]} Ra3 {[%emt 0:00:04]} 54. d6 {[%emt 0:00:01]} a4 {[%emt 0:00:00]} 55. d7 {[%emt 0:00:01]} Rd3 {[%emt 0:00:01]} 56. Nd5 {[%emt 0:00:01]} 1-0

[Event "IMSA Blitz Women 2019"]
[Site "Hengshui"]
[Date "2019.05.17"]
[Round "3.1"]
[White "Bodnaruk, Anastasia"]
[Black "Khotenashvili, Bela"]
[Result "1-0"]
[ECO "B12"]
[WhiteElo "2431"]
[BlackElo "2476"]
[Annotator "RC"]
[PlyCount "109"]
[EventDate "2019.05.17"]
[EventType "blitz"]
[EventCountry "CHN"]
[SourceTitle "playchess.com"]
[Source "ChessBase"]
[SourceQuality "1"]
[TimeControl "180+2"]

1. e4 {[%emt 0:00:00]} c6 {[%emt 0:00:00]} 2. d4 {[%emt 0:00:00]} d5 {[%emt 0:00:00]} 3. e5 {[%emt 0:00:00]} Bf5 {[%emt 0:00:02]} 4. Nf3 {[%emt 0:00:01]} e6 {[%emt 0:00:01]} 5. Be2 {[%emt 0:00:01]} Nd7 {[%emt 0:00:01]} 6. O-O {[%emt 0:00:02]} h5 {[%emt 0:00:02]} 7. b3 {[%emt 0:00:12]} Be7 {[%emt 0:00:04]} 8. c4 {[%emt 0:00:03]} g5 {[%emt 0:00:07]} 9. Nc3 {[%emt 0:00:08]} a6 {[%emt 0:00:05]} 10. Be3 {[%emt 0:00:05]} Nh6 {[%emt 0:00:33]} 11. Qd2 {[%emt 0:00:15]} Rg8 {[%emt 0:00:01]} 12. h4 {[%emt 0:00:06]} Bg4 {[%emt 0:00:36]} 13. Nxg5 {[%emt 0:00:37]} Nf5 {[%emt 0:00:13]} 14. f3 {[%emt 0:00:30]} Nxe3 {[%emt 0:00:09]} 15. Qxe3 {[%emt 0:00:04]} Bf5 {[%emt 0:00:01]} 16. f4 {[%emt 0:00:06]} Rh8 {[%emt 0:00:10]} 17. Rad1 {[%emt 0:00:07]} Nf8 {[%emt 0:00:03]} 18. Bf3 {[%emt 0:00:08]} Ng6 {[%emt 0:00:05]} 19. g3 {[%emt 0:00:01]} Qa5 {[%emt 0:00:09]} 20. a4 {[%emt 0:00:07]} Bb4 {[%emt 0:00:23]} 21. Na2 {[%emt 0:00:10]} dxc4 {[%emt 0:00:17]} 22. bxc4 {[%emt 0:00:05]} Qxa4 {[%emt 0:00:02]} 23. Nxb4 {[%emt 0:00:06]} Qxb4 {[%emt 0:00:02]} 24. d5 {[%emt 0:00:09]} cxd5 {[%emt 0:00:23]} 25. cxd5 {[%emt 0:00:01]} Rc8 {[%emt 0:00:03]} 26. d6 {[%emt 0:00:09]} Kf8 {[%emt 0:00:06]} 27. Rd4 {[%emt 0:00:16]} Qb6 {[%emt 0:00:07]} 28. Rfd1 {[%emt 0:00:09]} Kg7 {[%emt 0:00:01]} 29. Kh2 {[%emt 0:00:05]} Rc2+ {[%emt 0:00:01]} 30. R1d2 Rxd2+ {[%emt 0:00:02]} 31. Qxd2 {[%emt 0:00:02]} a5 {[%emt 0:00:06]} 32. Rc4 {[%emt 0:00:09]} Qb5 {[%emt 0:00:03]} 33. Rc7 {[%emt 0:00:04]} Rf8 {[%emt 0:00:02]} 34. d7 {[%emt 0:00:04]} Rd8 {[%emt 0:00:02]} 35. Rxb7 Qc4 {[%emt 0:00:04]} 36. Qxa5 {[%emt 0:00:05]} Qc2+ {[%emt 0:00:01]} 37. Bg2 {[%emt 0:00:03]} Nxf4 {[%emt 0:00:03]} 38. gxf4 {[%emt 0:00:01]} Qf2 {[%emt 0:00:02]} 39. Qb4 {[%emt 0:00:02]} Qxh4+ {[%emt 0:00:03]} 40. Nh3 {[%emt 0:00:00]} Bxh3 {[%emt 0:00:02]} 41. Bxh3 {[%emt 0:00:01]} Qf2+ {[%emt 0:00:01]} 42. Bg2 {[%emt 0:00:01]} Qh4+ {[%emt 0:00:01]} 43. Kg1 {[%emt 0:00:00]} Qg3 {[%emt 0:00:01]} 44. Qd2 {[%emt 0:00:04]} h4 {[%emt 0:00:03]} 45. Qf2 {[%emt 0:00:00]} Qc3 {[%emt 0:00:02]} 46. Rb1 {[%emt 0:00:06]} h3 {[%emt 0:00:02]} 47. Bf3 {[%emt 0:00:02]} Qc4 48. Qg3+ {[%emt 0:00:02]} Kf8 {[%emt 0:00:05]} 49. Rd1 {[%emt 0:00:03]} Qc5+ {[%emt 0:00:02]} 50. Kh2 {[%emt 0:00:02]} Qc2+ {[%emt 0:00:01]} 51. Kxh3 Qf5+ {[%emt 0:00:02]} 52. Qg4 {[%emt 0:00:02]} Qh7+ {[%emt 0:00:00]} 53. Qh5 {[%emt 0:00:01]} Qc2 {[%emt 0:00:02]} 54. Qh8+ {[%emt 0:00:02]} Ke7 {[%emt 0:00:02]} 55. Qf6+ {[%emt 0:00:01]} 1-0

[Event "IMSA Blitz Women 2019"]
[Site "Hengshui"]
[Date "2019.05.17"]
[Round "3.2"]
[White "Koneru, Humpy"]
[Black "Kosteniuk, Alexandra"]
[Result "1-0"]
[ECO "D37"]
[WhiteElo "2553"]
[BlackElo "2546"]
[Annotator "ChessBase"]
[PlyCount "125"]
[EventDate "2019.05.17"]
[EventType "blitz"]
[EventCountry "CHN"]
[SourceTitle "playchess.com"]
[Source "ChessBase"]
[SourceQuality "1"]
[TimeControl "180+2"]

1. d4 {[%emt 0:00:00]} Nf6 {[%emt 0:00:00]} 2. c4 {[%emt 0:00:00]} e6 {[%emt 0:00:00]} 3. Nf3 {[%emt 0:00:02]} d5 {[%emt 0:00:00]} 4. Nc3 {[%emt 0:00:01]} dxc4 {[%emt 0:00:01]} 5. e4 {[%emt 0:00:02]} b5 {[%emt 0:00:02]} 6. e5 {[%emt 0:00:35]} Nd5 {[%emt 0:00:01]} 7. Nxb5 {[%emt 0:00:02]} Nb6 {[%emt 0:00:01]} 8. Be2 {[%emt 0:00:11]} Be7 {[%emt 0:00:02]} 9. O-O {[%emt 0:00:03]} O-O {[%emt 0:00:01]} 10. Be3 {[%emt 0:00:17]} Nc6 {[%emt 0:00:14]} 11. Rc1 {[%emt 0:00:05]} Ba6 {[%emt 0:00:02]} 12. Nc3 {[%emt 0:00:05]} Nb4 {[%emt 0:00:14]} 13. b3 {[%emt 0:00:19]} N4d5 {[%emt 0:00:16]} 14. Bd2 {[%emt 0:00:11]} Ba3 {[%emt 0:00:06]} 15. Rb1 {[%emt 0:00:05]} Nxc3 {[%emt 0:00:29]} 16. Bxc3 {[%emt 0:00:01]} Be7 {[%emt 0:00:08]} 17. Nd2 {[%emt 0:00:20]} Qd5 {[%emt 0:00:42]} 18. Bf3 {[%emt 0:00:28]} Qd7 {[%emt 0:00:01]} 19. Bxa8 {[%emt 0:00:14]} cxb3 {[%emt 0:00:01]} 20. Bf3 {[%emt 0:00:07]} Bxf1 {[%emt 0:00:02]} 21. Qxf1 {[%emt 0:00:09]} bxa2 {[%emt 0:00:01]} 22. Ra1 {[%emt 0:00:02]} Na4 {[%emt 0:00:05]} 23. Qc4 {[%emt 0:00:05]} Rb8 {[%emt 0:00:03]} 24. Rxa2 {[%emt 0:00:06]} Nxc3 {[%emt 0:00:01]} 25. Qxc3 {[%emt 0:00:01]} Bb4 {[%emt 0:00:00]} 26. Qc1 {[%emt 0:00:11]} a5 {[%emt 0:00:04]} 27. h3 {[%emt 0:00:06]} h6 {[%emt 0:00:05]} 28. Qc4 {[%emt 0:00:02]} c5 {[%emt 0:00:08]} 29. Nb3 {[%emt 0:00:02]} cxd4 30. Nxd4 {[%emt 0:00:02]} Rc8 {[%emt 0:00:03]} 31. Nc6 {[%emt 0:00:00]} g6 {[%emt 0:00:18]} 32. Qe4 {[%emt 0:00:05]} Kg7 {[%emt 0:00:05]} 33. Nxb4 {[%emt 0:00:03]} Rc1+ {[%emt 0:00:03]} 34. Kh2 {[%emt 0:00:01]} axb4 {[%emt 0:00:01]} 35. Qxb4 {[%emt 0:00:02]} Qc7 {[%emt 0:00:02]} 36. Qf4 {[%emt 0:00:02]} Rc4 {[%emt 0:00:01]} 37. Qe3 {[%emt 0:00:02]} Rc5 {[%emt 0:00:01]} 38. Re2 {[%emt 0:00:01]} Rc3 {[%emt 0:00:01]} 39. Qf4 {[%emt 0:00:01]} Rc4 {[%emt 0:00:03]} 40. Qf6+ {[%emt 0:00:01]} Kh7 {[%emt 0:00:04]} 41. g3 {[%emt 0:00:04]} Rc1 {[%emt 0:00:01]} 42. Rd2 {[%emt 0:00:03]} Qa7 {[%emt 0:00:02]} 43. Kg2 {[%emt 0:00:02]} Rc8 {[%emt 0:00:05]} 44. Rd8 {[%emt 0:00:02]} Rxd8 {[%emt 0:00:02]} 45. Qxd8 {[%emt 0:00:01]} Qc5 {[%emt 0:00:02]} 46. Qf6 Qc7 47. h4 {[%emt 0:00:04]} h5 {[%emt 0:00:01]} 48. Be4 {[%emt 0:00:01]} Qd7 {[%emt 0:00:00]} 49. Qg5 Kg7 50. Qf6+ Kh7 51. g4 {[%emt 0:00:05]} hxg4 {[%emt 0:00:03]} 52. h5 {[%emt 0:00:00]} Qe8 {[%emt 0:00:01]} 53. hxg6+ {[%emt 0:00:04]} fxg6 {[%emt 0:00:00]} 54. Qh4+ {[%emt 0:00:02]} Kg7 {[%emt 0:00:01]} 55. Qxg4 {[%emt 0:00:01]} Qf7 {[%emt 0:00:00]} 56. Qg5 {[%emt 0:00:02]} Kh7 {[%emt 0:00:04]} 57. Kg3 {[%emt 0:00:01]} Qg7 {[%emt 0:00:04]} 58. Qh4+ {[%emt 0:00:06]} Kg8 {[%emt 0:00:01]} 59. Qd8+ {[%emt 0:00:01]} Kh7 {[%emt 0:00:01]} 60. Qf6 {[%emt 0:00:03]} Qg8 {[%emt 0:00:04]} 61. Kg4 {[%emt 0:00:02]} Kh6 {[%emt 0:00:02]} 62. Qg5+ {[%emt 0:00:02]} Kh7 {[%emt 0:00:01]} 63. Qh5+ {[%emt 0:00:01]} 1-0